[Event "Swedish Chess Championship 2021: Sverigemastarklassen"]
[Site "Scandic Helsingborg Nord, Florettgatan 41, Helsingborg, Sweden"]
[Date "2021.07.09"]
[Round "7.3"]
[White "Smith, Axel"]
[Black "Blomqvist, Erik"]
[Result "0-1"]
[TimeControl "90 minutes for 40 moves + 30 minutes for the rest of the game + 30 seconds per move from move one."]
[WhiteTitle "GM"]
[BlackTitle "GM"]
[WhiteFideId "1707930"]
[BlackFideId "1709437"]
[WhiteElo "2453"]
[BlackElo "2535"]

1. d4 {[%clk 01:30:58]} Nf6 {[%clk 01:30:52]} {[%emt 00:00:08]} 2. c4 {[%clk
01:31:27]} {[%emt 00:00:02]} e6 {[%clk 01:31:13]} {[%emt 00:00:08]} 3. Nc3
{[%clk 01:31:56]} {[%emt 00:00:02]} Bb4 {[%clk 01:31:31]} {[%emt 00:00:11]} 4.
f3 {[%clk 01:32:22]} {[%emt 00:00:04]} d5 {[%clk 01:31:37]} {[%emt 00:00:24]} 5.
a3 {[%clk 01:32:42]} {[%emt 00:00:11]} Be7 {[%clk 01:31:54]} {[%emt 00:00:12]}
6. e4 {[%clk 01:32:39]} {[%emt 00:00:33]} dxc4 {[%clk 01:32:07]} {[%emt
00:00:17]} 7. Bxc4 {[%clk 01:31:49]} {[%emt 00:01:20]} c5 {[%clk 01:32:29]}
{[%emt 00:00:08]} 8. Nge2 {[%clk 01:25:05]} {[%emt 00:07:15]} cxd4 {[%clk
01:30:48]} {[%emt 00:02:11]} 9. Nxd4 {[%clk 01:21:15]} {[%emt 00:04:19]} O-O
{[%clk 01:26:58]} {[%emt 00:04:20]} 10. Be3 {[%clk 01:21:18]} {[%emt 00:00:27]}
a6 {[%clk 01:21:52]} {[%emt 00:05:36]} 11. Rc1 {[%clk 01:12:12]} {[%emt
00:09:36]} Bd7 {[%clk 01:19:12]} {[%emt 00:03:11]} 12. e5 {[%clk 00:56:41]}
{[%emt 00:16:01]} Ne8 {[%clk 01:18:10]} {[%emt 00:01:32]} 13. f4 {[%clk
00:56:08]} {[%emt 00:01:03]} Nc7 {[%clk 01:18:31]} {[%emt 00:00:09]} 14. O-O
{[%clk 00:54:08]} {[%emt 00:02:30]} Nc6 {[%clk 01:18:57]} {[%emt 00:00:04]} 15.
Nf3 {[%clk 00:51:25]} {[%emt 00:03:13]} b5 {[%clk 01:19:17]} {[%emt 00:00:09]}
16. Ba2 {[%clk 00:43:57]} {[%emt 00:07:58]} Na5 {[%clk 01:13:43]} {[%emt
00:06:04]} 17. Qe2 {[%clk 00:38:33]} {[%emt 00:05:54]} Qb8 {[%clk 01:12:28]}
{[%emt 00:01:45]} 18. Rfd1 {[%clk 00:36:15]} {[%emt 00:02:47]} Rd8 {[%clk
01:11:12]} {[%emt 00:01:46]} 19. Nd2 {[%clk 00:26:48]} {[%emt 00:09:58]} b4
{[%clk 01:10:36]} {[%emt 00:01:05]} 20. axb4 {[%clk 00:27:03]} {[%emt
00:00:15]} Qxb4 {[%clk 01:10:46]} {[%emt 00:00:20]} 21. Nc4 {[%clk 00:17:24]}
{[%emt 00:10:10]} Bc6 {[%clk 01:05:35]} {[%emt 00:05:41]} 22. Nxa5 {[%clk
00:17:35]} {[%emt 00:00:20]} Qxa5 {[%clk 01:06:01]} {[%emt 00:00:04]} 23. Qf2
{[%clk 00:11:07]} {[%emt 00:06:58]} Rxd1+ {[%clk 01:05:20]} {[%emt 00:01:11]}
24. Rxd1 {[%clk 00:11:36]} {[%emt 00:00:01]} Rb8 {[%clk 01:05:40]} {[%emt
00:00:09]} 25. h3 {[%clk 00:07:31]} {[%emt 00:04:35]} g6 {[%clk 01:01:08]}
{[%emt 00:05:02]} 26. Kh2 {[%clk 00:08:00]} Nb5 {[%clk 00:54:14]} {[%emt
00:07:24]} 27. Rd2 {[%clk 00:01:50]} {[%emt 00:06:41]} Nxc3 {[%clk 00:39:11]}
{[%emt 00:15:33]} 28. bxc3 {[%clk 00:02:19]} {[%emt 00:00:01]} Qa3 {[%clk
00:39:34]} {[%emt 00:00:07]} 29. Bd4 {[%clk 00:01:15]} {[%emt 00:01:34]} h5
{[%clk 00:37:35]} {[%emt 00:02:29]} 30. Qe2 {[%clk 00:01:14]} {[%emt 00:00:32]}
h4 {[%clk 00:34:25]} {[%emt 00:03:40]} 31. Bc4 {[%clk 00:00:54]} {[%emt
00:00:51]} a5 {[%clk 00:30:44]} {[%emt 00:04:10]} 32. Ra2 {[%clk 00:00:42]}
{[%emt 00:00:42]} Qc1 {[%clk 00:30:22]} {[%emt 00:00:52]} 33. Be3 {[%clk
00:00:47]} {[%emt 00:00:26]} Qxc3 {[%clk 00:29:27]} {[%emt 00:01:25]} 34. Rc2
{[%clk 00:01:13]} {[%emt 00:00:04]} Qa1 {[%clk 00:28:38]} {[%emt 00:01:18]} 35.
Ra2 {[%clk 00:00:39]} {[%emt 00:01:04]} Qb1 {[%clk 00:28:06]} {[%emt 00:01:02]}
36. Bd3 {[%clk 00:00:59]} {[%emt 00:00:11]} Qb4 {[%clk 00:27:39]} {[%emt
00:00:56]} 37. Bd2 {[%clk 00:01:04]} {[%emt 00:00:26]} Qd4 {[%clk 00:27:39]}
{[%emt 00:00:29]} 38. Be3 {[%clk 00:01:03]} {[%emt 00:00:32]} Qd8 {[%clk
00:17:24]} {[%emt 00:10:45]} 39. Rd2 {[%clk 00:01:04]} {[%emt 00:00:29]} Qf8
{[%clk 00:16:47]} {[%emt 00:01:06]} 40. Rc2 {[%clk 00:01:00]} {[%emt 00:00:34]}
Bd5 {[%clk 00:15:26]} {[%emt 00:01:51]} 41. Bc4 {[%clk 00:30:10]} {[%emt
00:01:21]} Bxc4 {[%clk 00:38:45]} {[%emt 00:07:11]} 42. Rxc4 {[%clk 00:27:17]}
{[%emt 00:03:23]} Qd8 {[%clk 00:37:39]} {[%emt 00:01:34]} 43. Qc2 {[%clk
00:25:24]} {[%emt 00:02:23]} Qd5 {[%clk 00:34:58]} {[%emt 00:03:11]} 44. Rc7
{[%clk 00:17:36]} {[%emt 00:08:19]} Rb7 {[%clk 00:29:50]} {[%emt 00:05:37]} 45.
Rxb7 {[%clk 00:11:56]} {[%emt 00:06:10]} Qxb7 {[%clk 00:29:47]} {[%emt
00:00:32]} 46. Qa4 {[%clk 00:11:13]} {[%emt 00:01:13]} Qb4 {[%clk 00:28:58]}
{[%emt 00:01:19]} 47. Qe8+ {[%clk 00:06:43]} {[%emt 00:05:00]} Kg7 {[%clk
00:29:15]} {[%emt 00:00:13]} 48. f5 {[%clk 00:06:07]} {[%emt 00:01:06]} gxf5
{[%clk 00:25:46]} {[%emt 00:03:58]} 49. Bh6+ {[%clk 00:04:13]} {[%emt
00:02:24]} Kxh6 {[%clk 00:26:10]} {[%emt 00:00:06]} 50. Qxf7 {[%clk 00:04:12]}
{[%emt 00:00:30]} Kg5 {[%clk 00:25:24]} {[%emt 00:01:13]} 51. Qxe6 {[%clk
00:04:02]} {[%emt 00:00:44]} Kf4 {[%clk 00:22:48]} {[%emt 00:03:05]} 52. Qd5
{[%clk 00:02:09]} {[%emt 00:02:22]} a4 {[%clk 00:20:23]} {[%emt 00:02:56]} 53.
Kh1 {[%clk 00:01:56]} {[%emt 00:00:43]} Qe1+ {[%clk 00:20:26]} {[%emt
00:00:27]} 54. Kh2 {[%clk 00:02:23]} {[%emt 00:00:04]} Qxe5 {[%clk 00:20:43]}
{[%emt 00:00:12]} 55. Qd1 {[%clk 00:01:48]} {[%emt 00:01:05]} Kg5+ {[%clk
00:20:46]} {[%emt 00:00:27]} 56. Kh1 {[%clk 00:02:13]} {[%emt 00:00:06]} Bd6
{[%clk 00:20:33]} {[%emt 00:00:42]} 57. Qc1+ {[%clk 00:01:05]} {[%emt
00:01:39]} Qf4 {[%clk 00:20:37]} {[%emt 00:00:24]} 58. Qg1 {[%clk 00:01:24]}
{[%emt 00:00:12]} Qh2+ {[%clk 00:20:58]} {[%emt 00:00:10]} 59. Qxh2 {[%clk
00:01:31]} {[%emt 00:00:23]} Bxh2 {[%clk 00:21:23]} {[%emt 00:00:05]} 60. Kxh2
{[%clk 00:01:26]} {[%emt 00:00:35]} a3 {[%clk 00:21:47]} {[%emt 00:00:06]} 0-1

[Event "Swedish Chess Championship 2021: Sverigemastarklassen"]
[Site "Scandic Helsingborg Nord, Florettgatan 41, Helsingborg, Sweden"]
[Date "2021.07.09"]
[Round "7.4"]
[White "Lokander, Martin"]
[Black "Storme, Isak"]
[Result "1-0"]
[TimeControl "90 minutes for 40 moves + 30 minutes for the rest of the game + 30 seconds per move from move one."]
[WhiteTitle "IM"]
[BlackTitle "FM"]
[WhiteFideId "1709569"]
[BlackFideId "1728113"]
[WhiteElo "2437"]
[BlackElo "2397"]

1. d4 {[%clk 01:30:54]} {[%emt 00:00:05]} Nf6 {[%clk 01:30:54]} {[%emt
00:00:07]} 2. c4 {[%clk 01:31:05]} {[%emt 00:00:19]} g6 {[%clk 01:31:19]}
{[%emt 00:00:04]} 3. Nc3 {[%clk 01:31:25]} {[%emt 00:00:11]} d5 {[%clk
01:31:44]} {[%emt 00:00:05]} 4. Bg5 {[%clk 01:30:47]} {[%emt 00:01:08]} Bg7
{[%clk 01:31:58]} {[%emt 00:00:16]} 5. Bxf6 {[%clk 01:30:19]} {[%emt 00:00:58]}
Bxf6 {[%clk 01:32:19]} {[%emt 00:00:09]} 6. cxd5 {[%clk 01:30:44]} {[%emt
00:00:05]} c6 {[%clk 01:32:18]} {[%emt 00:00:30]} 7. e4 {[%clk 01:30:44]}
{[%emt 00:00:30]} cxd5 {[%clk 01:29:09]} {[%emt 00:03:39]} 8. Bb5+ {[%clk
01:30:33]} {[%emt 00:00:41]} Nd7 {[%clk 01:23:58]} {[%emt 00:05:40]} 9. Nxd5
{[%clk 01:26:08]} {[%emt 00:04:56]} O-O {[%clk 01:22:20]} {[%emt 00:02:08]} 10.
Bxd7 {[%clk 01:24:26]} {[%emt 00:02:13]} Bxd7 {[%clk 01:22:04]} {[%emt
00:00:45]} 11. Ne2 {[%clk 01:22:07]} {[%emt 00:02:49]} Bc6 {[%clk 01:10:43]}
{[%emt 00:11:52]} 12. Nxf6+ {[%clk 01:15:59]} {[%emt 00:06:38]} exf6 {[%clk
01:11:05]} {[%emt 00:00:08]} 13. d5 {[%clk 01:12:57]} {[%emt 00:03:32]} Bb5
{[%clk 01:10:18]} {[%emt 00:01:16]} 14. Nc3 {[%clk 01:13:10]} {[%emt 00:00:18]}
Ba6 {[%clk 01:10:06]} {[%emt 00:00:41]} 15. Qd4 {[%clk 01:13:04]} {[%emt
00:00:36]} Rc8 {[%clk 01:09:49]} {[%emt 00:00:47]} 16. O-O-O {[%clk 01:11:20]}
{[%emt 00:02:15]} b5 {[%clk 00:47:34]} {[%emt 00:22:44]} 17. Kb1 {[%clk
01:10:25]} {[%emt 00:01:25]} Rc4 {[%clk 00:44:06]} {[%emt 00:03:58]} 18. Qe3
{[%clk 01:08:42]} {[%emt 00:02:13]} b4 {[%clk 00:40:58]} {[%emt 00:03:38]} 19.
Ne2 {[%clk 01:06:57]} {[%emt 00:02:15]} f5 {[%clk 00:39:09]} {[%emt 00:02:18]}
20. f3 {[%clk 01:00:53]} {[%emt 00:06:35]} fxe4 {[%clk 00:32:15]} {[%emt
00:07:24]} 21. fxe4 {[%clk 01:01:19]} {[%emt 00:00:04]} f5 {[%clk 00:22:18]}
{[%emt 00:10:26]} 22. Nd4 {[%clk 00:58:14]} {[%emt 00:03:35]} Qd7 {[%clk
00:19:34]} {[%emt 00:03:14]} 23. Ne6 {[%clk 00:54:04]} {[%emt 00:04:41]} Rfc8
{[%emt 00:03:11]} 24. exf5 {[%clk 00:53:15]} {[%emt 00:01:19]} Qf7 {[%clk
00:15:53]} {[%emt 00:01:29]} 25. fxg6 {[%clk 00:48:36]} {[%emt 00:05:10]} Qxg6+
{[%clk 00:15:15]} {[%emt 00:01:08]} 26. Ka1 {[%clk 00:49:02]} {[%emt 00:00:04]}
Bb7 {[%clk 00:13:51]} {[%emt 00:01:52]} 27. Rhe1 {[%clk 00:45:15]} {[%emt
00:04:18]} a5 {[%clk 00:09:23]} {[%emt 00:04:59]} 28. Nf4 {[%clk 00:36:59]}
{[%emt 00:08:46]} Qf6 {[%clk 00:07:30]} {[%emt 00:02:23]} 29. Nh5 {[%clk
00:30:55]} {[%emt 00:06:34]} Qg6 {[%clk 00:06:49]} {[%emt 00:01:10]} 30. Qe5
{[%clk 00:30:53]} {[%emt 00:00:33]} Rf8 {[%clk 00:03:11]} {[%emt 00:04:07]} 31.
d6 {[%clk 00:31:19]} {[%emt 00:00:04]} Re4 {[%clk 00:02:23]} {[%emt 00:01:18]}
32. Rxe4 {[%clk 00:31:15]} {[%emt 00:00:34]} Bxe4 {[%clk 00:02:44]} {[%emt
00:00:09]} 33. d7 {[%clk 00:30:52]} {[%emt 00:00:53]} 1-0

[Event "Swedish Chess Championship 2021: Sverigemastarklassen"]
[Site "Scandic Helsingborg Nord, Florettgatan 41, Helsingborg, Sweden"]
[Date "2021.07.09"]
[Round "7.5"]
[White "Hillarp Persson, Tiger"]
[Black "Wiedenkeller, Michael"]
[Result "1/2-1/2"]
[TimeControl "90 minutes for 40 moves + 30 minutes for the rest of the game + 30 seconds per move from move one."]
[WhiteTitle "GM"]
[BlackTitle "IM"]
[WhiteFideId "1700812"]
[BlackFideId "1700146"]
[WhiteElo "2542"]
[BlackElo "2445"]

1. d4 {[%clk 01:30:54]} {[%emt 00:00:05]} Nf6 {[%clk 01:30:33]} {[%emt
00:00:28]} 2. c4 {[%clk 01:30:46]} {[%emt 00:00:39]} e6 {[%clk 01:30:37]}
{[%emt 00:00:25]} 3. Nc3 {[%clk 01:31:09]} {[%emt 00:00:06]} Bb4 {[%clk
01:30:49]} {[%emt 00:00:17]} 4. e3 {[%clk 01:31:30]} {[%emt 00:00:09]} O-O
{[%clk 01:30:56]} {[%emt 00:00:24]} 5. Nf3 {[%clk 01:31:54]} {[%emt 00:00:06]}
d5 {[%clk 01:30:39]} {[%emt 00:00:47]} 6. Bd2 {[%clk 01:32:15]} {[%emt
00:00:09]} b6 {[%clk 01:16:02]} {[%emt 00:15:07]} 7. cxd5 {[%clk 01:32:14]}
{[%emt 00:00:31]} exd5 {[%clk 01:15:27]} {[%emt 00:01:05]} 8. Rc1 {[%clk
01:32:35]} {[%emt 00:00:09]} a6 {[%clk 01:10:45]} {[%emt 00:05:13]} 9. Bd3
{[%clk 01:22:01]} {[%emt 00:11:04]} Bb7 {[%clk 01:09:51]} {[%emt 00:01:23]} 10.
Ne5 {[%clk 01:21:06]} {[%emt 00:01:24]} Nbd7 {[%clk 01:07:52]} {[%emt
00:02:30]} 11. O-O {[%clk 01:20:14]} {[%emt 00:01:22]} Nxe5 {[%clk 00:44:52]}
{[%emt 00:23:30]} 12. dxe5 {[%clk 01:20:26]} {[%emt 00:00:18]} Bxc3 {[%clk
00:44:53]} {[%emt 00:00:30]} 13. Bxc3 {[%clk 01:20:09]} {[%emt 00:00:47]} Ne4
{[%clk 00:44:56]} {[%emt 00:00:27]} 14. Bxe4 {[%clk 01:18:06]} {[%emt
00:02:33]} dxe4 {[%clk 00:45:11]} {[%emt 00:00:15]} 15. Qg4 {[%clk 01:18:28]}
{[%emt 00:00:08]} Qe7 {[%clk 00:43:47]} {[%emt 00:01:54]} 16. b4 {[%clk
01:01:53]} {[%emt 00:17:05]} Qe6 {[%clk 00:39:43]} {[%emt 00:04:34]} 17. Qg3
{[%clk 01:00:16]} {[%emt 00:02:07]} Rad8 {[%clk 00:35:54]} {[%emt 00:04:19]} 18.
Bd4 {[%clk 01:00:06]} {[%emt 00:00:39]} Rd7 {[%clk 00:34:48]} {[%emt 00:01:37]}
19. Rc2 {[%clk 00:59:26]} {[%emt 00:01:09]} Re8 {[%clk 00:34:15]} {[%emt
00:01:04]} 20. Rfc1 {[%clk 00:59:08]} {[%emt 00:00:48]} Ree7 {[%clk 00:33:52]}
{[%emt 00:00:53]} 21. a4 {[%clk 00:56:14]} {[%emt 00:03:23]} h6 {[%clk
00:30:23]} {[%emt 00:03:58]} 22. h3 {[%clk 00:55:33]} {[%emt 00:01:11]} Kh7
{[%clk 00:29:36]} {[%emt 00:01:18]} 23. h4 {[%clk 00:50:22]} {[%emt 00:05:41]}
Bd5 {[%clk 00:25:50]} {[%emt 00:04:16]} 24. h5 {[%clk 00:49:37]} {[%emt
00:01:14]} c6 {[%clk 00:18:58]} {[%emt 00:07:23]} 25. f4 {[%clk 00:43:05]}
{[%emt 00:07:01]} exf3 {[%clk 00:09:21]} {[%emt 00:10:08]} 26. gxf3 {[%clk
00:43:21]} {[%emt 00:00:13]} b5 {[%clk 00:04:16]} {[%emt 00:05:35]} 27. axb5
{[%clk 00:42:14]} {[%emt 00:01:37]} axb5 {[%clk 00:04:38]} {[%emt 00:00:09]} 28.
Rg2 {[%clk 00:33:08]} {[%emt 00:09:34]} g6 {[%clk 00:04:13]} {[%emt 00:00:56]}
29. hxg6+ {[%clk 00:33:30]} {[%emt 00:00:08]} fxg6 {[%clk 00:04:28]} {[%emt
00:00:15]} 30. Rh2 {[%clk 00:33:51]} {[%emt 00:00:08]} Rf7 {[%clk 00:03:36]}
{[%emt 00:01:23]} 31. e4 {[%clk 00:28:29]} {[%emt 00:05:52]} Bc4 {[%clk
00:01:21]} {[%emt 00:02:45]} 32. Be3 {[%clk 00:28:51]} {[%emt 00:00:07]} h5
{[%clk 00:01:11]} {[%emt 00:00:41]} 33. Bg5 {[%clk 00:25:10]} {[%emt 00:04:10]}
Rd3 {[%clk 00:00:57]} {[%emt 00:00:44]} 34. Bf6 {[%clk 00:23:41]} {[%emt
00:01:58]} Rxf6 {[%clk 00:00:42]} {[%emt 00:00:46]} 35. exf6 {[%clk 00:23:49]}
{[%emt 00:00:22]} Qxf6 {[%clk 00:01:10]} {[%emt 00:00:02]} 36. Rf2 {[%clk
00:24:09]} {[%emt 00:00:08]} Qd4 {[%clk 00:00:32]} {[%emt 00:01:09]} 37. Qc7+
{[%clk 00:15:28]} {[%emt 00:09:11]} Kh6 {[%clk 00:00:45]} {[%emt 00:00:18]} 38.
Kg2 {[%clk 00:15:44]} {[%emt 00:00:13]} Rb3 {[%clk 00:00:38]} {[%emt 00:00:38]}
39. Qf4+ {[%clk 00:07:08]} {[%emt 00:09:05]} g5 {[%clk 00:00:44]} {[%emt
00:00:25]} 40. Qf8+ {[%clk 00:07:03]} {[%emt 00:00:35]} Qg7 {[%clk 00:00:45]}
{[%emt 00:00:29]} 41. Qxg7+ {[%clk 00:00:35]} {[%emt 00:06:57]} Kxg7 {[%clk
00:01:12]} {[%emt 00:00:04]} 42. Rd1 {[%clk 00:00:50]} {[%emt 00:00:14]} Kf6
{[%clk 00:22:13]} {[%emt 00:09:30]} 43. Rd6+ {[%clk 00:30:44]} {[%emt
00:00:36]} Ke5 {[%clk 00:22:23]} {[%emt 00:00:20]} 44. Rxc6 {[%clk 00:31:07]}
{[%emt 00:00:07]} g4 {[%clk 00:20:36]} {[%emt 00:02:17]} 45. Rc5+ {[%clk
00:29:59]} {[%emt 00:01:37]} Kd4 {[%clk 00:19:38]} {[%emt 00:01:28]} 46. Rxh5
{[%clk 00:30:07]} {[%emt 00:00:21]} gxf3+ {[%clk 00:19:30]} {[%emt 00:00:39]}
47. Rxf3 {[%clk 00:29:38]} {[%emt 00:00:58]} Rxb4 {[%clk 00:17:31]} {[%emt
00:02:30]} 48. Rh4 {[%clk 00:23:05]} {[%emt 00:07:02]} Rb2+ {[%clk 00:16:12]}
{[%emt 00:01:50]} 49. Kg3 {[%clk 00:23:25]} {[%emt 00:00:09]} Re2 {[%clk
00:15:32]} {[%emt 00:01:11]} 50. Rf8 {[%clk 00:20:14]} {[%emt 00:03:41]}
1/2-1/2